fUSD/lending_fUSD_20251211
["ID","MTS","AMOUNT","RATE_DAILY","PERIOD"]
[398192386,1765433442330,-151.0,0.00032877,31]
[398192387,1765433442340,-157.040801,0.00032877,31]
[398192388,1765433442350,-454.662602,0.00032877,31]
[398192389,1765433442359,-454.662602,0.00032877,31]
[398192390,1765433442368,-454.662602,0.00032877,31]
[398192391,1765433442377,-454.662602,0.00032877,31]
[398192392,1765433442387,-151.0,0.00032877,31]
[398192393,1765433442396,-166.981152,0.00032877,31]
[398192394,1765433442406,-199.14812,0.00032877,31]
[398192395,1765433442415,-151.0,0.00032877,31]
[398192396,1765433442425,-151.0,0.00032877,31]
[398192397,1765433442434,-151.0,0.00032877,31]
[398192398,1765433442444,-151.0,0.00032877,31]
[398192399,1765433442453,-151.0,0.00032877,31]
[398192400,1765433442463,-151.0,0.00032877,31]
[398192401,1765433442473,-151.0,0.00032877,31]
[398192402,1765433442482,-151.0,0.00032877,31]
[398192403,1765433442491,-151.0,0.00032877,31]
[398192404,1765433442500,-151.0,0.00032877,31]
[398192405,1765433442509,-151.0,0.00032877,31]
[398192406,1765433442518,-151.0,0.00032877,31]
[398192407,1765433442528,-151.0,0.00032877,31]
[398192408,1765433442537,-151.0,0.00032877,31]
[398192409,1765433442546,-151.0,0.00032877,31]
[398192410,1765433442555,-151.0,0.00032877,31]
[398192411,1765433442564,-151.0,0.00032877,31]
[398192413,1765433442574,-151.0,0.00032877,31]
[398192414,1765433442584,-151.0,0.00032877,31]
[398192415,1765433442593,-151.0,0.00032877,31]
[398192416,1765433442603,-353.953634,0.00032877,31]
[398192417,1765433442612,-353.953634,0.00032877,31]
[398192418,1765433442621,-353.953634,0.00032877,31]
[398192419,1765433442631,-353.953634,0.00032877,31]
[398192420,1765433442641,-274.286321,0.00032877,31]
[398192421,1765433442651,-151.0,0.00032877,31]
[398192422,1765433442665,-151.0,0.00032877,31]
[398192423,1765433442674,-151.0,0.00032877,31]
[398192424,1765433442684,-151.0,0.00032877,31]
[398192425,1765433442694,-293.940796,0.00032877,31]
[398192426,1765433442704,-151.0,0.00032877,31]
[398192427,1765433442714,-151.0,0.00032877,31]
[398192428,1765433442723,-151.0,0.00032877,31]
[398192429,1765433442734,-226.986693,0.00032877,31]
[398192430,1765433442743,-226.986693,0.00032877,31]
[398192431,1765433442752,-226.986693,0.00032877,31]
[398192432,1765433442762,-226.986693,0.00032877,31]
[398192433,1765433442772,-166.762421,0.00032877,31]
[398192434,1765433442781,-166.762421,0.00032877,31]
[398192436,1765433442790,-166.762421,0.00032877,31]
[398192437,1765433442799,-151.0,0.00032877,31]
[398192438,1765433442809,-166.762421,0.00032877,31]
[398192439,1765433442818,-151.0,0.00032877,31]
[398192440,1765433442827,-196.437615,0.00032877,31]
[398192441,1765433442837,-151.0,0.00032877,31]
[398192442,1765433442847,-151.0,0.00032877,31]
[398192444,1765433442858,-151.0,0.00032877,31]
[398192446,1765433442867,-151.0,0.00032877,31]
[398192447,1765433442877,-151.0,0.00032877,31]
[398192448,1765433442887,-151.0,0.00032877,31]
[398192449,1765433442896,-151.0,0.00032877,31]
[398192450,1765433442906,-431.304549,0.00032877,31]
[398192451,1765433442915,-151.0,0.00032877,31]
[398192452,1765433442925,-431.304549,0.00032877,31]
[398192453,1765433442935,-151.0,0.00032877,31]
[398192454,1765433442945,-431.304549,0.00032877,31]
[398192455,1765433442954,-151.0,0.00032877,31]
[398192456,1765433442964,-431.304549,0.00032877,31]
[398192457,1765433442973,-157.281504,0.00032877,31]
[398192458,1765433442982,-157.281504,0.00032877,31]
[398192459,1765433442992,-157.281504,0.00032877,31]
[398192460,1765433443001,-157.281504,0.00032877,31]
[398192461,1765433443011,-151.0,0.00032877,31]
[398192462,1765433443020,-255.147733,0.00032877,31]
[398192463,1765433443029,-151.0,0.00032877,31]
[398192464,1765433443039,-151.0,0.00032877,31]
[398192465,1765433443048,-151.0,0.00032877,31]
[398192466,1765433443057,-228.199924,0.00032877,31]
[398192467,1765433443066,-228.199924,0.00032877,31]
[398192468,1765433443076,-228.199924,0.00032877,31]
[398192469,1765433443085,-156.029694,0.00032877,31]
[398192470,1765433443095,-228.199924,0.00032877,31]
[398192471,1765433443104,-151.0,0.00032877,31]
[398192472,1765433443114,-151.0,0.00032877,31]
[398192473,1765433443124,-151.0,0.00032877,31]
[398192474,1765433443133,-151.0,0.00032877,31]
[398192475,1765433443142,-151.0,0.00032877,31]
[398192476,1765433443151,-339.899709,0.00032877,31]
[398192477,1765433443161,-339.899709,0.00032877,31]
[398192478,1765433443170,-339.899709,0.00032877,31]
[398192479,1765433443179,-339.899709,0.00032877,31]
[398192480,1765433443188,-151.0,0.00032877,31]
[398192481,1765433443197,-151.0,0.00032877,31]
[398192482,1765433443207,-151.0,0.00032877,31]
[398192483,1765433443217,-151.0,0.00032877,31]
[398192484,1765433443226,-151.0,0.00032877,31]
[398192485,1765433443236,-151.0,0.00032877,31]
[398192486,1765433443246,-151.0,0.00032877,31]
[398192487,1765433443255,-151.0,0.00032877,31]
[398192488,1765433443265,-263.30351232,0.00032877,31]
[398192489,1765433443274,-371.475411,0.00032877,31]
[398192490,1765433443284,-371.475411,0.00032877,31]
[398192491,1765433443296,-371.475411,0.00032877,31]
[398192492,1765433443308,-371.475411,0.00032877,31]
[398192493,1765433443320,-984.30248,0.00032877,31]
[398192494,1765433443331,-984.30248,0.00032877,31]
[398192495,1765433443341,-984.30248,0.00032877,31]
[398192496,1765433443351,-984.30248,0.00032877,31]
[398192497,1765433443362,-168.05,0.000329,14]
[398192498,1765433443372,-465.0,0.00033,9]
[398192499,1765433443382,-176.25201587,0.00033138,2]
[398192500,1765433443392,-220.67,0.00033165,2]
[398192501,1765433443401,-223.64064297,0.00033214,2]
[398192502,1765433443411,-1108.93,0.000336,30]
[398192503,1765433443420,-398.86540225,0.00033682,2]
[398192504,1765433443429,-10160.30464231,0.00033824,2]
[398192505,1765433443438,-998.83295488,0.00034129,2]
[398192506,1765433443457,-778.67,0.00034327,30]
[398192507,1765433443467,-2663.55454635,0.00034359,2]
[398192508,1765433443476,-7301.37384553,0.00034395,2]
[398192509,1765433443486,-2000.0,0.00035,20]
[398192510,1765433443495,-2000.0,0.00035,20]
[398192511,1765433443504,-1000.0,0.00035,20]
[398192512,1765433443513,-164.0,0.00035,120]
[398192513,1765433443522,-267.0,0.00035308,30]
[398192514,1765433443531,-998.83295488,0.00035396,2]
[398192515,1765433443541,-253.0,0.00035431,2]
[398192516,1765433443550,-150.0,0.00035616,120]
[398192517,1765433443559,-500.0,0.00035695,30]
[398192518,1765433443568,-150.0,0.00035753,120]
[398192519,1765433443578,-200.0,0.0003589,120]
[398192520,1765433443587,-1108.93,0.000359,30]
[398192521,1765433443597,-1000.0,0.00036,12]
[398192522,1765433443606,-223.64064297,0.00036052,2]
[398192523,1765433443615,-10160.30464231,0.00036215,2]
[398192524,1765433443624,-480.31,0.00036301,2]
[398192525,1765433443633,-7301.37384553,0.00036595,2]
[398192526,1765433443643,-3915.36778843,0.00036635,2]
[398192527,1765433443655,-998.83295488,0.00036662,2]
[398192528,1765433443665,-150.0,0.00036962,7]
[398192529,1765433443674,-150.0,0.00036962,7]
[398192530,1765433443683,-150.0,0.00036962,7]
[398192531,1765433443694,-156.29623318,0.00036962,7]
[398192532,1765433443703,-150.0,0.00036962,7]
[398192533,1765433443712,-150.0,0.00036962,7]
[398192534,1765433443722,-150.0,0.00036962,7]
[398192535,1765433443732,-150.0,0.00036962,7]
[398192536,1765433443741,-151.62186521,0.00036962,7]
[398192537,1765433443752,-150.00000001,0.00036962,7]
[398192538,1765433443761,-245.95240702,0.00036962,7]
[398192539,1765433443770,-150.0,0.00036962,7]
[398192540,1765433443779,-7767.55,0.00036986,30]
[398192541,1765433443788,-179.39,0.00036986,2]
[398192542,1765433443798,-1215.91,0.00036986,2]
[398192543,1765433443807,-178.08,0.00036986,2]
[398192544,1765433443816,-150.08,0.00036986,2]
[398192545,1765433443826,-170.25,0.00036986,2]
[398192546,1765433443835,-356.16,0.00036986,2]
[398192547,1765433443844,-2000.0,0.00037,22]
[398192548,1765433443853,-2375.0,0.00037,22]
[398192549,1765433443862,-150.0,0.00037646,7]
[398192550,1765433443871,-2663.55454635,0.00037677,2]
[398192551,1765433443880,-150.0,0.00037783,7]
[398192552,1765433443889,-150.0,0.00037783,7]
[398192553,1765433443898,-150.0,0.00037783,7]
[398192554,1765433443907,-998.83295488,0.00037929,2]
[398192555,1765433443916,-2000.0,0.00038,30]
[398192556,1765433443926,-2000.0,0.00038,27]
[398192557,1765433443935,-2000.0,0.00038,25]
[398192558,1765433443945,-152.0,0.00038226,3]
[398192559,1765433443955,-150.36185267,0.00038297,7]
[398192560,1765433443964,-1108.93,0.000383,30]
[398192561,1765433443974,-150.0,0.00038331,7]
[398192562,1765433443983,-150.0,0.00038331,7]
[398192563,1765433443992,-600.0,0.00038356,30]
[398192564,1765433444002,-500.0,0.00038425,60]
[398192565,1765433444011,-253.0,0.00038431,2]
[398192566,1765433444021,-150.0,0.00038604,7]
[398192567,1765433444031,-150.0,0.00038604,7]
[398192568,1765433444041,-150.0,0.00038604,7]
[398192569,1765433444051,-10160.30464231,0.00038605,2]
[398192570,1765433444060,-178.08,0.0003863,2]
[398192571,1765433444070,-7301.37384553,0.00038795,2]
[398192572,1765433444079,-223.64064297,0.0003889,2]
[398192573,1765433444089,-600.0,0.00038904,30]
[398192574,1765433444099,-150.0,0.00039015,7]
[398192575,1765433444108,-10735.48,0.00039069,2]
[398192576,1765433444117,-500.0,0.00039134,60]
[398192577,1765433444127,-500.0,0.00039134,60]
[398192578,1765433444136,-778.67,0.00039162,120]
[398192579,1765433444145,-998.83295488,0.00039195,2]
[398192580,1765433444155,-150.0,0.00039426,7]
[398192581,1765433444165,-150.0,0.00039426,7]
[398192582,1765433444174,-150.0,0.00039426,7]
[398192583,1765433444184,-643.73,0.00039452,30]
[398192584,1765433444194,-150.38,0.00039452,2]
[398192585,1765433444204,-500.0,0.00039479,2]
[398192586,1765433444214,-500.0,0.00039499,60]
[398192587,1765433444223,-500.0,0.00039499,60]
[398192588,1765433444232,-220.67,0.00039654,2]
[398192589,1765433444242,-150.0,0.000397,7]
[398192590,1765433444251,-150.0,0.000397,7]
[398192591,1765433444261,-500.0,0.00039725,60]
[398192592,1765433444271,-500.0,0.00039726,120]
[398192593,1765433444280,-500.0,0.00039726,120]
[398192594,1765433444289,-500.0,0.00039726,120]
[398192595,1765433444299,-500.0,0.00039726,120]
[398192596,1765433444308,-500.0,0.00039726,120]
[398192597,1765433444519,-490.92,0.0004,120]
[398192598,1765433444528,-1600.85669793,0.0004,120]
[398192599,1765433444537,-245.74929,0.0004,120]
[398192600,1765433444547,-257.0,0.0004,120]
[398192601,1765433444557,-150.0,0.0004,60]
[398192602,1765433444567,-150.0,0.00040247,7]
[398192603,1765433444576,-150.0,0.00040247,7]
[398192604,1765433444585,-150.0,0.00040247,7]
[398192605,1765433444594,-150.0,0.00040384,7]
[398192606,1765433444604,-998.83295488,0.00040462,28]
[398192607,1765433444613,-227.52279267,0.000405,120]
[398192608,1765433444623,-539.9028264,0.00040547,120]
[398192609,1765433444632,-380.04,0.000406,14]
[398192610,1765433444641,-200.0,0.00040764,20]
[398192611,1765433444652,-500.0,0.00040821,120]
[398192612,1765433444663,-3454.63,0.00040889,60]
[398192613,1765433444672,-151.0,0.00040896,14]
[398192614,1765433444682,-3454.63,0.00040899,60]
[398192615,1765433444692,-3454.63,0.00040899,60]
[398192616,1765433444703,-500.0,0.00040899,60]
[398192617,1765433444712,-535.99,0.00040899,60]
[398192618,1765433444721,-500.0,0.00040899,60]
[398192619,1765433444733,-500.0,0.00040899,60]
[398192620,1765433444742,-19123.0,0.000409,120]
[398192621,1765433444751,-250000.0,0.000409,30]
[398192622,1765433444761,-151.0,0.000409,120]
[398192623,1765433444771,-151.0,0.000409,120]
[398192624,1765433444780,-175.980561,0.000409,30]
[398192625,1765433444789,-151.0,0.000409,120]
[398192626,1765433444798,-151.0,0.000409,120]
[398192627,1765433444808,-151.0,0.000409,14]
[398192628,1765433444817,-151.0,0.000409,120]
[398192629,1765433444826,-151.0,0.000409,120]
[398192630,1765433444835,-159.23218,0.000409,120]
[398192631,1765433444844,-151.0,0.000409,120]
[398192632,1765433444852,-151.0,0.000409,120]
[398192633,1765433444861,-151.0,0.000409,120]
[398192634,1765433444871,-151.0,0.000409,120]
[398192635,1765433444881,-151.0,0.000409,120]
[398192636,1765433444890,-151.0,0.000409,120]
[398192637,1765433444900,-190.870504,0.000409,30]
[398192638,1765433444910,-151.0,0.000409,120]
[398192639,1765433444919,-151.0,0.000409,120]
[398192640,1765433444928,-151.0,0.000409,120]
[398192641,1765433444937,-151.0,0.000409,120]
[398192642,1765433444946,-151.0,0.000409,120]
[398192643,1765433444955,-151.0,0.000409,120]
[398192644,1765433444964,-151.0,0.000409,120]
[398192645,1765433444973,-151.0,0.000409,120]
[398192646,1765433444982,-151.0,0.000409,120]
[398192647,1765433444991,-151.0,0.000409,120]
[398192648,1765433445001,-151.0,0.000409,2]
[398192649,1765433445010,-151.0,0.000409,2]
[398192650,1765433445019,-154.510677,0.000409,120]
[398192651,1765433445029,-151.0,0.000409,2]
[398192652,1765433445038,-151.0,0.000409,120]
[398192653,1765433445048,-151.0,0.000409,120]
[398192654,1765433445057,-197.609308,0.000409,120]
[398192655,1765433445066,-151.0,0.000409,120]
[398192656,1765433445075,-151.0,0.000409,120]
[398192657,1765433445084,-151.0,0.000409,120]
[398192658,1765433445093,-151.0,0.000409,120]
[398192659,1765433445103,-151.0,0.000409,120]
[398192660,1765433445112,-151.0,0.000409,120]
[398192661,1765433445121,-151.0,0.000409,120]
[398192662,1765433445131,-151.0,0.000409,120]
[398192663,1765433445140,-159.43807,0.000409,120]
[398192664,1765433445150,-159.43807,0.000409,120]
[398192665,1765433445160,-159.43807,0.000409,120]
[398192666,1765433445169,-159.43807,0.000409,120]
[398192667,1765433445178,-151.0,0.000409,120]
[398192668,1765433445188,-233.187248,0.000409,120]
[398192669,1765433445197,-151.0,0.000409,120]
[398192670,1765433445206,-151.0,0.000409,120]
[398192671,1765433445216,-151.0,0.000409,120]
[398192672,1765433445225,-371.475411,0.000409,120]
[398192673,1765433445234,-371.475411,0.000409,120]
[398192674,1765433445243,-371.475411,0.000409,120]
[398192675,1765433445252,-371.475411,0.000409,120]
[398192676,1765433445262,-984.30248,0.000409,120]
[398192677,1765433445271,-984.30248,0.000409,120]
[398192678,1765433445281,-984.30248,0.000409,120]
[398192679,1765433445291,-984.30248,0.000409,120]
[398192680,1765433445300,-454.662602,0.000409,120]
[398192681,1765433445310,-454.662602,0.000409,120]
[398192682,1765433445319,-454.662602,0.000409,120]
[398192683,1765433445328,-454.662602,0.000409,120]
[398192684,1765433445337,-151.0,0.000409,120]
[398192685,1765433445347,-151.0,0.000409,120]
[398192686,1765433445356,-151.0,0.000409,120]
[398192687,1765433445366,-151.0,0.000409,120]
[398192688,1765433445374,-151.0,0.000409,120]
[398192689,1765433445384,-151.0,0.000409,120]
[398192690,1765433445393,-151.0,0.000409,120]
[398192691,1765433445402,-151.0,0.000409,120]
[398192692,1765433445411,-151.0,0.000409,120]
[398192693,1765433445420,-151.0,0.000409,120]
[398192694,1765433445429,-151.0,0.000409,120]
[398192695,1765433445439,-151.0,0.000409,120]
[398192696,1765433445448,-226.239191,0.000409,120]
[398192697,1765433445457,-151.0,0.000409,120]
[398192698,1765433445466,-151.0,0.000409,120]
[398192699,1765433445475,-353.953634,0.000409,120]
[398192700,1765433445484,-353.953634,0.000409,120]
[398192701,1765433445493,-353.953634,0.000409,120]
[398192702,1765433445502,-353.953634,0.000409,120]
[398192703,1765433445512,-151.0,0.000409,120]
[398192704,1765433445521,-151.0,0.000409,120]
[398192705,1765433445530,-151.0,0.000409,120]
[398192706,1765433445539,-151.0,0.000409,120]
[398192707,1765433445548,-151.0,0.000409,120]
[398192708,1765433445557,-151.0,0.000409,120]
[398192709,1765433445566,-151.0,0.000409,120]
[398192710,1765433445576,-151.0,0.000409,120]
[398192711,1765433445586,-151.0,0.000409,120]
[398192712,1765433445596,-151.0,0.000409,120]
[398192713,1765433445606,-226.986693,0.000409,120]
[398192715,1765433445616,-151.0,0.000409,120]
[398192717,1765433445626,-226.986693,0.000409,120]
[398192719,1765433445639,-151.0,0.000409,120]
[398192720,1765433445649,-226.986693,0.000409,120]
[398192721,1765433445669,-226.986693,0.000409,120]
[398192722,1765433445685,-166.762421,0.000409,120]
[398192723,1765433445695,-166.762421,0.000409,120]
[398192724,1765433445704,-166.762421,0.000409,120]
[398192725,1765433445714,-151.0,0.000409,120]
[398192726,1765433445723,-166.762421,0.000409,120]
[398192727,1765433445733,-151.0,0.000409,120]
[398192728,1765433445742,-151.0,0.000409,120]
[398192729,1765433445752,-151.0,0.000409,120]
[398192730,1765433445761,-192.631444,0.000409,120]
[398192731,1765433445771,-371.354658,0.000409,120]
[398192732,1765433445780,-371.354658,0.000409,120]
[398192733,1765433445789,-151.0,0.000409,120]
[398192734,1765433445799,-371.354658,0.000409,120]
[398192735,1765433445808,-151.0,0.000409,120]
[398192736,1765433445818,-371.354658,0.000409,120]
[398192737,1765433445827,-151.0,0.000409,120]
[398192738,1765433445836,-431.304549,0.000409,120]
[398192739,1765433445845,-151.0,0.000409,120]
[398192740,1765433445854,-151.0,0.000409,120]
[398192741,1765433445863,-431.304549,0.000409,120]
[398192742,1765433445872,-151.0,0.000409,120]
[398192743,1765433445881,-431.304549,0.000409,120]
[398192744,1765433445891,-151.0,0.000409,120]
[398192745,1765433445900,-431.304549,0.000409,120]
[398192746,1765433445909,-157.281504,0.000409,120]
[398192747,1765433445920,-157.281504,0.000409,120]
[398192748,1765433445929,-157.281504,0.000409,120]
[398192749,1765433445938,-157.281504,0.000409,120]
[398192750,1765433445948,-151.0,0.000409,120]
[398192751,1765433445957,-151.0,0.000409,120]
[398192752,1765433445967,-151.0,0.000409,120]
[398192753,1765433445976,-151.0,0.000409,120]
[398192754,1765433445986,-228.199924,0.000409,120]
[398192755,1765433445995,-228.199924,0.000409,120]
[398192756,1765433446004,-228.199924,0.000409,120]
[398192757,1765433446013,-228.199924,0.000409,120]
[398192758,1765433446022,-151.0,0.000409,120]
[398192759,1765433446031,-151.365669,0.000409,120]
[398192760,1765433446041,-151.0,0.000409,120]
[398192761,1765433446050,-235.647838,0.000409,120]
[398192762,1765433446059,-339.899709,0.000409,120]
[398192763,1765433446068,-339.899709,0.000409,120]
[398192764,1765433446078,-339.899709,0.000409,120]
[398192765,1765433446087,-339.899709,0.000409,120]
[398192766,1765433446096,-151.0,0.000409,120]
[398192767,1765433446107,-151.0,0.000409,120]
[398192768,1765433446116,-151.0,0.000409,120]
[398192769,1765433446126,-2663.55454635,0.00040994,28]
[398192770,1765433446135,-500.0,0.00040994,60]
[398192771,1765433446145,-10160.30464231,0.00040995,15]
[398192772,1765433446154,-7301.37384553,0.00040995,15]
[398192773,1765433446163,-893.51255175,0.00040995,2]
[398192774,1765433446172,-2946.75250284,0.00040995,2]
[398192775,1765433446181,-1952.74112458,0.00040995,2]
[398192777,1765433446190,-519.56625397,0.00040995,2]
[398192778,1765433446200,-150.0,0.00041,60]
[398192779,1765433446209,-435.53786252,0.00041,120]
[398192780,1765433446219,-200.297228,0.00041,21]
[398192781,1765433446228,-151.0,0.00041068,120]
[398192782,1765433446237,-151.0,0.00041068,120]
[398192783,1765433446247,-185.08806188,0.00041068,7]
[398192784,1765433446255,-154.82397653,0.00041068,7]
[398192785,1765433446264,-150.0,0.00041068,7]
[398192786,1765433446274,-150.0,0.00041068,7]
[398192787,1765433446283,-150.0,0.00041068,7]
[398192788,1765433446291,-151.1752583,0.00041068,7]
[398192789,1765433446300,-150.0,0.00041068,7]
[398192790,1765433446309,-150.0,0.00041068,7]
[398192791,1765433446318,-991.14171224,0.00041085,7]
[398192792,1765433446327,-1000.0,0.00041088,120]
[398192793,1765433446336,-204.53766916,0.00041088,120]
[398192794,1765433446345,-535.99,0.00041093,60]
[398192795,1765433446354,-500.0,0.00041094,60]
[398192796,1765433446363,-648.05,0.00041094,60]
[398192797,1765433446372,-3454.63,0.00041094,60]
[398192798,1765433446381,-3454.63,0.00041094,60]
[398192799,1765433446390,-3454.63,0.00041094,60]
[398192800,1765433446399,-3454.63,0.00041094,60]
[398192801,1765433446408,-3454.63,0.00041094,60]
[398192802,1765433446417,-3454.63,0.00041094,60]
[398192803,1765433446426,-3454.63,0.00041094,60]
[398192804,1765433446435,-3454.63,0.00041094,60]
[398192805,1765433446445,-3454.63,0.00041094,60]
[398192806,1765433446454,-3454.63,0.00041094,60]
[398192807,1765433446463,-3454.63,0.00041094,60]
[398192808,1765433446473,-3454.86902287,0.00041094,60]
[398192809,1765433446482,-500.0,0.00041094,60]
[398192810,1765433446490,-500.0,0.00041094,60]
[398192811,1765433446500,-500.0,0.00041094,60]
[398192812,1765433446508,-500.0,0.00041094,60]
[398192813,1765433446517,-500.0,0.00041094,60]
[398192814,1765433446527,-500.0,0.00041094,60]
[398192815,1765433446536,-500.0,0.00041094,60]
[398192816,1765433446546,-500.0,0.00041094,60]
[398192817,1765433446555,-500.0,0.00041094,60]
[398192818,1765433446563,-535.99,0.00041094,60]
[398192819,1765433446573,-535.99,0.00041094,60]
[398192820,1765433446581,-535.99,0.00041094,60]
[398192821,1765433446590,-535.99,0.00041094,60]
[398192822,1765433446600,-535.99,0.00041094,60]
[398192823,1765433446609,-535.99,0.00041094,60]
[398192824,1765433446618,-535.99,0.00041094,60]
[398192825,1765433446627,-535.99,0.00041094,60]
[398192826,1765433446635,-535.99,0.00041094,60]
[398192827,1765433446644,-535.99,0.00041094,60]
[398192828,1765433446656,-535.99,0.00041094,60]
[398192829,1765433446665,-535.99,0.00041094,60]
[398192830,1765433446674,-536.12,0.00041094,60]
[398192831,1765433446683,-453.44924679,0.00041094,60]
[398192832,1765433446691,-12011.57418503,0.00041095,33]
[398192833,1765433446737,-52003.16691866,0.00041095,33]
[398192834,1765433446746,-173.58249599,0.00041095,60]
[398192835,1765433446756,-500.0,0.00041095,60]
[398192836,1765433446765,-500.0,0.00041095,60]
[398192837,1765433446773,-500.0,0.00041095,60]
[398192838,1765433446783,-505.50477657,0.00041095,60]
[398192839,1765433446792,-640.9702992,0.00041095,60]
[398192840,1765433446801,-506.0981897,0.00041095,60]
[398192841,1765433446810,-500.0,0.00041095,60]
[398192842,1765433446819,-500.0,0.00041095,60]
[398192843,1765433446828,-546.92881334,0.00041095,60]
[398192844,1765433446837,-503.5980163,0.00041095,60]
[398192845,1765433446846,-500.0,0.00041095,60]
[398192846,1765433446855,-500.0,0.00041095,60]
[398192847,1765433446864,-502.43179751,0.00041095,60]
[398192848,1765433446873,-501.83177338,0.00041095,60]
[398192849,1765433446882,-542.59,0.00041095,60]
[398192850,1765433446891,-542.59,0.00041095,60]
[398192851,1765433446900,-542.59,0.00041095,60]
[398192852,1765433446909,-500.0,0.00041095,60]
[398192853,1765433446918,-542.59,0.00041095,60]
[398192854,1765433446927,-500.0,0.00041095,60]
[398192855,1765433446936,-504.68440522,0.00041095,60]
[398192856,1765433446945,-542.59,0.00041095,60]
[398192857,1765433446953,-544.21144544,0.00041095,60]
[398192858,1765433446962,-500.0,0.00041095,60]
[398192859,1765433446971,-500.0,0.00041095,60]
[398192860,1765433446979,-542.59,0.00041095,60]
[398192861,1765433446988,-500.0,0.00041095,60]
[398192862,1765433446997,-542.59,0.00041095,60]
[398192863,1765433447006,-500.0,0.00041095,60]
[398192864,1765433447015,-542.59,0.00041095,60]
[398192865,1765433447024,-500.0,0.00041095,60]
[398192866,1765433447033,-500.0,0.00041095,60]
[398192867,1765433447042,-500.0,0.00041095,60]
[398192868,1765433447051,-542.59,0.00041095,60]
[398192869,1765433447060,-508.16654205,0.00041095,60]
[398192870,1765433447069,-511.40460244,0.00041095,60]
[398192871,1765433447078,-542.59,0.00041095,60]
[398192872,1765433447087,-501.09837077,0.00041095,60]
[398192873,1765433447096,-500.0,0.00041095,60]
[398192874,1765433447105,-542.59,0.00041095,60]
[398192875,1765433447114,-500.0,0.00041095,60]
[398192876,1765433447123,-542.59,0.00041095,60]
[398192877,1765433447132,-507.66509852,0.00041095,60]
[398192878,1765433447141,-500.0,0.00041095,60]
[398192879,1765433447150,-542.59,0.00041095,60]
[398192880,1765433447159,-542.59,0.00041095,60]
[398192881,1765433447168,-500.0,0.00041095,60]
[398192882,1765433447177,-542.59,0.00041095,60]
[398192883,1765433447186,-507.98905335,0.00041095,60]
[398192884,1765433447195,-542.59,0.00041095,60]
[398192885,1765433447205,-542.59,0.00041095,60]
[398192886,1765433447214,-542.59,0.00041095,60]
[398192887,1765433447223,-542.59,0.00041095,60]
[398192888,1765433447232,-500.0,0.00041095,60]
[398192889,1765433447241,-542.59,0.00041095,60]
[398192890,1765433447250,-505.11692702,0.00041095,60]
[398192891,1765433447259,-542.59,0.00041095,60]
[398192892,1765433447268,-542.59,0.00041095,60]
[398192893,1765433447277,-542.59,0.00041095,60]